bitfinex/quotes_BTCUSD_20230404
["timestamp","ask_amount","ask_price","bid_price","bid_amount"]
[1680595744661,2.66905933,28034.0,28033.0,95.47833431]
[1680595746615,2.54109899,28034.0,28033.0,95.47833431]
[1680595747009,2.36272899,28034.0,28033.0,95.47833431]
[1680595747222,2.54111899,28034.0,28033.0,95.47833431]
[1680595748573,2.36272899,28034.0,28033.0,95.47833431]
[1680595748819,2.81693339,28034.0,28033.0,95.47833431]
[1680595749042,2.99543307,28034.0,28033.0,95.47851431]
[1680595749670,2.99564307,28034.0,28033.0,95.47845431]
[1680595750661,3.0380865,28034.0,28033.0,95.47851431]
[1680595751520,3.0380965,28034.0,28033.0,95.47851431]
[1680595751734,3.03797253,28034.0,28033.0,95.47851431]
[1680595751955,3.03797253,28034.0,28033.0,95.06817134]
[1680595752174,3.18561423,28034.0,28033.0,95.06817134]
[1680595754631,2.97231799,28034.0,28033.0,95.06817134]
[1680595755271,2.82467629,28034.0,28033.0,95.06817134]
[1680595757245,2.97584308,28034.0,28033.0,95.06817134]
[1680595758050,2.70001868,28034.0,28033.0,95.06817134]
[1680595758688,2.9559531,28034.0,28033.0,95.06817134]
[1680595759708,2.32481868,28034.0,28033.0,95.06817134]
[1680595760142,2.32502868,28034.0,28033.0,95.06811134]
[1680595760368,2.32481868,28034.0,28033.0,95.06817134]
[1680595760598,2.58517099,28034.0,28033.0,95.06817134]
[1680595761988,2.96037099,28034.0,28033.0,95.06817134]
[1680595762446,2.58517099,28034.0,28033.0,95.06817134]
[1680595762657,2.32481868,28034.0,28033.0,95.06817134]
[1680595763309,2.32479868,28034.0,28033.0,95.06817134]
[1680595763940,2.17363189,28034.0,28033.0,95.06817134]
[1680595764154,2.31138345,28034.0,28033.0,95.06817134]
[1680595765580,2.17363189,28034.0,28033.0,95.06817134]
[1680595766310,2.17365189,28034.0,28033.0,95.06817134]
[1680595766519,2.17386189,28034.0,28033.0,95.06811134]
[1680595766732,2.33464963,28034.0,28033.0,95.06811134]
[1680595767179,2.33443963,28034.0,28033.0,95.06817134]
[1680595767446,2.15604963,28034.0,28033.0,95.06817134]
[1680595767660,2.33443963,28034.0,28033.0,95.06817134]
[1680595772252,2.33464963,28034.0,28033.0,95.06788878]
[1680595773090,2.15625963,28034.0,28033.0,95.06788878]
[1680595773304,2.33463963,28034.0,28033.0,95.06788878]
[1680595773762,2.17385189,28034.0,28033.0,95.06788878]
[1680595773975,2.3164718,28034.0,28033.0,95.06788878]
[1680595774193,2.34462883,28034.0,28033.0,95.06788878]
[1680595774420,2.33508459,28034.0,28033.0,95.06788878]
[1680595778044,2.33508459,28034.0,28033.0,95.06800878]
[1680595778656,2.33508459,28034.0,28033.0,95.06788878]
[1680595780244,2.15670459,28034.0,28033.0,95.06788878]
[1680595780446,2.33508459,28034.0,28033.0,95.06788878]
[1680595780862,2.17385189,28034.0,28033.0,95.06800878]
[1680595782060,2.17385189,28034.0,28033.0,95.06788878]
[1680595783166,2.36158688,28034.0,28033.0,95.06788878]
[1680595784987,2.18320688,28034.0,28033.0,95.06788878]
[1680595785179,2.36158688,28034.0,28033.0,95.06788878]
[1680595786086,2.17385189,28034.0,28033.0,95.06788878]
[1680595787012,1.99547189,28034.0,28033.0,95.06788878]
[1680595787536,2.17385189,28034.0,28033.0,95.06788878]
[1680595788747,2.17385189,28034.0,28033.0,95.43690676]
[1680595789159,2.17384189,28034.0,28033.0,95.43690676]
[1680595789720,2.17384189,28034.0,28033.0,95.06788878]
[1680595790147,1.99547189,28034.0,28033.0,95.06788878]
[1680595790414,2.17384189,28034.0,28033.0,95.06788878]
[1680595793377,2.17384189,28034.0,28033.0,95.52022996]
[1680595793620,2.17385189,28034.0,28033.0,95.52022996]
[1680595793837,2.17269337,28034.0,28033.0,95.52040996]
[1680595794387,2.17290337,28034.0,28033.0,95.52034996]
[1680595795339,2.17269337,28034.0,28033.0,95.52040996]
[1680595796730,2.17269337,28034.0,28033.0,95.06806878]
[1680595799977,2.25024779,28034.0,28033.0,95.06806878]
[1680595800175,2.42862779,28034.0,28033.0,95.06806878]
[1680595801067,2.62227172,28034.0,28033.0,95.06806878]
[1680595801480,2.42862779,28034.0,28033.0,95.06806878]
[1680595801685,2.58617836,28034.0,28033.0,95.06806878]
[1680595801909,2.42862779,28034.0,28033.0,95.06806878]
[1680595802109,2.59082979,28034.0,28033.0,95.06806878]
[1680595802748,2.42862779,28034.0,28033.0,95.06806878]
[1680595803086,2.5664414,28034.0,28033.0,95.06806878]
[1680595804991,2.42862779,28034.0,28033.0,95.06806878]
[1680595805208,2.71128757,28034.0,28033.0,95.06806878]
[1680595807326,2.71149757,28034.0,28033.0,94.87305253]
[1680595807525,2.8514834,28034.0,28033.0,94.87305253]
[1680595808186,2.56882362,28034.0,28033.0,94.87305253]
[1680595809055,2.94402362,28034.0,28033.0,94.87305253]
[1680595811700,2.6880892,28034.0,28033.0,94.87305253]
[1680595812173,2.94402362,28034.0,28033.0,94.87305253]
[1680595815077,2.94402362,28034.0,28033.0,94.87317253]
[1680595815298,2.94404362,28034.0,28033.0,94.87305253]
[1680595818363,2.94261762,28034.0,28033.0,94.87305253]
[1680595818605,2.94404362,28034.0,28033.0,94.87305253]
[1680595819764,3.00316737,28034.0,28033.0,94.84662465]
[1680595820013,2.84383857,28034.0,28033.0,94.83786595]
[1680595820378,2.75228043,28034.0,28033.0,94.83786595]
[1680595820582,2.56202337,28034.0,28033.0,94.83786595]
[1680595820848,2.81683857,28034.0,28033.0,94.82913095]
[1680595821054,2.84383857,28034.0,28033.0,94.82913095]
[1680595821284,2.73700183,28034.0,28033.0,94.86333673]
[1680595821476,2.38362337,28034.0,28033.0,94.86345673]
[1680595821655,2.57279337,28034.0,28033.0,94.84601673]
[1680595821856,2.57279337,28034.0,28033.0,94.81911169]
[1680595822363,2.57279337,28034.0,28033.0,94.81543169]
[1680595822575,2.57279337,28034.0,28033.0,94.79428169]
[1680595822795,3.71004808,28034.0,28033.0,94.43789767]
[1680595823010,4.16633966,28034.0,28033.0,94.25380198]
[1680595823218,4.13933966,28034.0,28033.0,93.62174342]
[1680595823386,4.37894265,28034.0,28033.0,93.62174342]
[1680595823794,4.35194265,28034.0,28033.0,93.6561593]
[1680595824264,4.37894265,28034.0,28033.0,93.6561593]
[1680595824380,4.37894265,28034.0,28033.0,93.6455593]
[1680595825028,4.53948265,28034.0,28033.0,93.6455593]
[1680595825235,4.51248265,28034.0,28033.0,93.6455593]
[1680595825453,4.53948265,28034.0,28033.0,93.62255309]
[1680595826543,4.53948265,28034.0,28033.0,93.07546823]
[1680595826966,4.53948265,28034.0,28033.0,93.06472923]
[1680595827197,4.51248265,28034.0,28033.0,93.06472923]
[1680595828550,4.76313945,28034.0,28033.0,93.06472923]
[1680595828782,4.7809097,28034.0,28033.0,93.06472923]
[1680595829001,4.8079097,28034.0,28033.0,93.06472923]
[1680595830104,4.8079097,28034.0,28033.0,92.78585867]
[1680595830525,4.8079097,28034.0,28033.0,92.52997932]
[1680595830743,4.8010097,28034.0,28033.0,92.52997932]
[1680595830957,4.8010097,28034.0,28033.0,92.46809698]
[1680595831229,4.5503529,28034.0,28033.0,92.45192853]
[1680595832205,4.83762389,28034.0,28033.0,92.45192853]
[1680595833408,4.86814828,28034.0,28033.0,92.44804091]
[1680595833628,4.86793828,28034.0,28033.0,92.44816091]
[1680595834065,6.79496637,28034.0,28033.0,92.44816091]
[1680595834510,6.79517637,28034.0,28033.0,92.43920609]
[1680595836093,6.79517637,28034.0,28033.0,92.43902158]
[1680595836797,6.79517637,28034.0,28033.0,92.432424]
[1680595837233,6.79517637,28034.0,28033.0,92.386684]
[1680595838886,6.79517637,28034.0,28033.0,92.37795989]
[1680595839073,6.79515637,28034.0,28033.0,92.37795989]
[1680595839511,6.79515637,28034.0,28033.0,92.32196989]
[1680595839731,6.50788538,28034.0,28033.0,92.30224384]
[1680595839959,6.79515637,28034.0,28033.0,92.30224384]
[1680595840198,6.62073999,28034.0,28033.0,92.30224384]
[1680595840434,6.333469,28034.0,28033.0,92.30224384]
[1680595840801,6.333469,28034.0,28033.0,92.29376325]
[1680595842047,6.34555431,28034.0,28033.0,92.29376325]
[1680595842627,6.55209029,28034.0,28033.0,92.29376325]
[1680595843702,6.37364029,28034.0,28033.0,92.29376325]
[1680595843910,6.55209029,28034.0,28033.0,92.29376325]
[1680595844531,6.55209029,28034.0,28033.0,92.29388325]
[1680595844740,6.55209029,28034.0,28033.0,92.068725]
[1680595844949,6.83936128,28034.0,28033.0,92.068725]
[1680595846631,6.83936128,28034.0,28033.0,92.05960427]
[1680595846844,6.66091128,28034.0,28033.0,92.05960427]
[1680595847054,6.83937128,28034.0,28033.0,92.05960427]
[1680595848399,6.83937128,28034.0,28033.0,92.05087471]
[1680595849065,6.83936128,28034.0,28033.0,92.05087471]
[1680595849281,6.66091128,28034.0,28033.0,92.05087471]
[1680595849452,6.83936128,28034.0,28033.0,92.05087471]
[1680595850553,6.83586128,28034.0,28033.0,92.05087471]
[1680595850903,6.61155505,28034.0,28033.0,92.05087471]
[1680595851504,6.6293253,28034.0,28033.0,92.05087471]
[1680595852767,6.61155505,28034.0,28033.0,92.05087471]
[1680595853592,6.61155505,28034.0,28033.0,92.04003565]
[1680595853801,6.82319053,28034.0,28033.0,92.02347805]
[1680595855510,6.61058754,28034.0,28033.0,92.01999019]
[1680595857269,6.32331655,28034.0,28033.0,92.01999019]
[1680595858770,6.11168107,28034.0,28033.0,92.01999019]
[1680595859830,6.12945132,28034.0,28033.0,92.01999019]
[1680595860062,6.12944132,28034.0,28033.0,92.01999019]
[1680595860921,6.12944132,28034.0,28033.0,91.98483754]
[1680595861983,6.12944132,28034.0,28033.0,91.97457412]
[1680595862421,5.95100132,28034.0,28033.0,91.97457412]
[1680595862638,6.12944132,28034.0,28033.0,91.96674612]
[1680595863079,6.12944132,28034.0,28033.0,91.95950212]
[1680595865047,6.49093892,28034.0,28033.0,91.95950212]
[1680595865759,6.70364831,28034.0,28033.0,91.95950212]
[1680595867492,7.12042684,28034.0,28033.0,91.95950212]
[1680595869365,7.12042684,28034.0,28033.0,91.94946212]
[1680595871463,6.90771745,28034.0,28033.0,91.94946212]
[1680595872125,6.49093892,28034.0,28033.0,91.90332212]
[1680595874559,6.47316867,28034.0,28033.0,91.90332212]
[1680595874773,6.68587806,28034.0,28033.0,91.90332212]
[1680595875209,6.70230705,28034.0,28033.0,91.90332212]
[1680595875866,6.70231705,28034.0,28033.0,91.90332212]
[1680595878095,6.70231705,28034.0,28033.0,91.88789472]
[1680595878762,6.70231705,28034.0,28033.0,91.86089472]
[1680595879414,6.70232705,28034.0,28033.0,91.86089472]
[1680595880715,9.88232705,28034.0,28033.0,91.86089472]
[1680595880932,9.88232705,28034.0,28033.0,91.86101472]
[1680595881191,9.88232705,28034.0,28033.0,91.86089472]
[1680595881920,9.88232705,28034.0,28033.0,91.81949472]
[1680595882127,10.28232705,28034.0,28033.0,91.26265672]
[1680595883729,10.28232705,28034.0,28033.0,91.23038672]
[1680595883944,10.28232705,28034.0,28033.0,91.21382906]
[1680595886300,10.28232705,28034.0,28033.0,91.21394906]
[1680595887122,10.28232705,28034.0,28033.0,91.19030906]
[1680595889135,10.3000973,28034.0,28033.0,91.19030906]
[1680595891575,10.08738791,28034.0,28033.0,91.19030906]
[1680595892793,10.3000973,28034.0,28033.0,91.19030906]
[1680595894125,10.3001073,28034.0,28033.0,91.19030906]
[1680595896917,10.3001073,28034.0,28033.0,91.13463906]
[1680595897628,10.08739791,28034.0,28033.0,91.13463906]
[1680595897844,10.08739791,28034.0,28033.0,91.08758906]
[1680595898272,9.90892791,28034.0,28033.0,91.08758906]
[1680595898501,10.3001073,28034.0,28033.0,91.07878189]
[1680595899037,10.28233705,28034.0,28033.0,91.07878189]
[1680595900120,10.10386705,28034.0,28033.0,91.07878189]
[1680595900327,10.28233705,28034.0,28033.0,91.07878189]
[1680595900943,10.10386705,28034.0,28033.0,91.07878189]
[1680595901165,10.28232705,28034.0,28033.0,91.07878189]
[1680595901816,10.25532705,28034.0,28033.0,91.06808189]
[1680595902234,10.23882365,28034.0,28033.0,91.06808189]
[1680595902447,10.26582365,28034.0,28033.0,91.06808189]
[1680595902594,10.26582365,28034.0,28033.0,90.99234108]
[1680595902812,10.26582365,28034.0,28033.0,90.44976408]
[1680595903013,10.26582365,28034.0,28033.0,90.08804608]
[1680595903366,10.26583365,28034.0,28033.0,89.90672908]
[1680595903586,10.96583365,28034.0,28033.0,89.87032908]
[1680595904264,10.78736365,28034.0,28033.0,89.87032908]
[1680595904465,10.96583365,28034.0,28033.0,89.87032908]
[1680595906160,10.75312426,28034.0,28033.0,89.49397708]
[1680595906403,10.75312426,28034.0,28033.0,89.42853328]
[1680595906620,10.75312426,28034.0,28033.0,88.09369731]
[1680595906836,10.75312426,28034.0,28033.0,87.85721197]
[1680595907273,10.75313426,28034.0,28033.0,87.85721197]
[1680595907492,10.72613426,28034.0,28033.0,87.85721197]
[1680595907772,10.72613426,28034.0,28033.0,87.82092822]
[1680595907987,10.77090451,28034.0,28033.0,87.81530022]
[1680595908176,10.74390451,28034.0,28033.0,87.81530022]
[1680595908408,10.77090451,28034.0,28033.0,87.65555377]
[1680595908630,10.75313426,28034.0,28033.0,87.65555377]
[1680595908854,10.75313426,28034.0,28033.0,87.58868377]
[1680595909083,10.75313426,28034.0,28033.0,87.57960377]
[1680595909314,10.57465426,28034.0,28033.0,87.56654495]
[1680595909528,10.75313426,28034.0,28033.0,87.56654495]
[1680595909953,10.75313426,28034.0,28033.0,87.55213295]
[1680595910168,10.75313426,28034.0,28033.0,87.54925495]
[1680595910375,10.75170826,28034.0,28033.0,87.3477305]
[1680595910594,10.75170826,28034.0,28033.0,87.2767305]
[1680595911257,10.72470826,28034.0,28033.0,87.2658505]
[1680595911518,10.75170826,28034.0,28033.0,87.2658505]
[1680595911736,10.76947851,28034.0,28033.0,87.2658505]
[1680595912390,10.74247851,28034.0,28033.0,87.2658505]
[1680595912608,10.75170826,28034.0,28033.0,87.24539115]
[1680595912829,10.72470826,28034.0,28033.0,87.24539115]
[1680595913018,10.75170826,28034.0,28033.0,87.17439115]
[1680595913463,10.72470826,28034.0,28033.0,86.78367715]
[1680595913695,10.75170826,28034.0,28033.0,86.59847615]
[1680595913913,10.75170826,28034.0,28033.0,86.38788589]
[1680595913914,10.74247851,28034.0,28033.0,86.38788589]
[1680595914130,10.74926851,28034.0,28033.0,86.38806589]
[1680595914347,10.77476351,28034.0,28033.0,86.38806589]
[1680595915213,10.74776351,28034.0,28033.0,86.38806589]
[1680595915442,10.77497351,28034.0,28033.0,86.34172889]
[1680595915663,10.9876829,28034.0,28033.0,86.15745379]
[1680595916118,11.47125409,28034.0,28033.0,86.15745379]
[1680595916330,11.47123409,28034.0,28033.0,86.15745379]
[1680595916783,11.47123409,28034.0,28033.0,85.48279847]
[1680595916784,10.78998257,28034.0,28033.0,85.48279847]
[1680595917008,11.07697291,28034.0,28033.0,85.48279847]
[1680595917219,11.49556253,28034.0,28033.0,85.48279847]
[1680595917665,11.49556253,28034.0,28033.0,85.47390847]
[1680595918105,11.49556253,28034.0,28033.0,85.47033847]
[1680595918331,11.49556253,28034.0,28033.0,85.45088847]
[1680595918785,11.49556253,28034.0,28033.0,85.43911447]
[1680595919002,11.47779228,28034.0,28033.0,85.32130935]
[1680595919264,11.47779228,28034.0,28033.0,85.31523935]
[1680595919488,11.49556253,28034.0,28033.0,85.31523935]
[1680595920643,11.47779228,28034.0,28033.0,85.31523935]
[1680595921553,11.47779228,28034.0,28033.0,85.30476368]
[1680595921778,11.47779228,28034.0,28033.0,85.26024368]
[1680595922036,11.36598685,28034.0,28033.0,85.26024368]
[1680595922713,11.36598685,28034.0,28033.0,85.25513368]
[1680595922967,11.36598685,28034.0,28033.0,85.24965368]
[1680595924384,11.34577685,28034.0,28033.0,85.24983368]
[1680595925500,10.92718723,28034.0,28033.0,85.24983368]
[1680595926344,10.92740723,28034.0,28033.0,85.24977368]
[1680595926558,10.92719723,28034.0,28033.0,85.24983368]
[1680595926851,11.30146149,28034.0,28033.0,85.06858584]
[1680595927067,11.30146149,28034.0,28033.0,85.03833584]
[1680595927287,11.30146149,28034.0,28033.0,85.01903584]
[1680595927930,11.30146149,28034.0,28033.0,84.98920584]
[1680595928574,11.30146149,28034.0,28033.0,84.78941084]
[1680595928738,11.30146149,28034.0,28033.0,84.42746884]
[1680595928959,11.30146149,28034.0,28033.0,84.24880084]
[1680595929164,11.3035729,28034.0,28033.0,84.24880084]
[1680595929506,11.32134209,28034.0,28033.0,84.24880084]
[1680595932747,11.32134209,28034.0,28033.0,84.27866072]
[1680595932967,11.32134209,28034.0,28033.0,84.26994672]
[1680595935510,11.32134209,28034.0,28033.0,84.14089272]
[1680595935736,11.32134209,28034.0,28033.0,84.15129605]
[1680595936391,11.32134209,28034.0,28033.0,84.15141605]
[1680595936622,11.32134209,28034.0,28033.0,84.15129605]
[1680595937433,11.32134209,28034.0,28033.0,84.14426605]
[1680595937661,11.32134209,28034.0,28033.0,84.13955995]
[1680595937864,11.32134209,28034.0,28033.0,84.13082318]
[1680595938112,11.32134209,28034.0,28033.0,84.12340072]
[1680595938370,11.32134209,28034.0,28033.0,84.02516192]
[1680595938813,11.1086327,28034.0,28033.0,84.02516192]
[1680595939031,10.73457844,28034.0,28033.0,84.02516192]
[1680595939676,10.73457844,28034.0,28033.0,84.02162192]
[1680595939913,10.73457844,28034.0,28033.0,83.99057692]
[1680595940583,10.73457844,28034.0,28033.0,83.98437792]
[1680595940794,10.73457844,28034.0,28033.0,83.98313992]
[1680595941214,10.95419555,28034.0,28033.0,83.98289292]
[1680595941638,11.32824981,28034.0,28033.0,83.98289292]
[1680595941854,11.32824981,28034.0,28033.0,83.97202292]
[1680595942328,11.28348062,28034.0,28033.0,83.97202292]
[1680595942547,11.31048062,28034.0,28033.0,83.97202292]
[1680595942760,11.28348062,28034.0,28033.0,83.95229292]
[1680595942987,11.31048062,28034.0,28033.0,83.95229292]
[1680595943510,10.90198062,28034.0,28033.0,83.95229292]
[1680595943718,10.90198062,28034.0,28033.0,83.93573267]
[1680595943719,11.27498062,28034.0,28033.0,83.93573267]
[1680595943940,11.30198062,28034.0,28033.0,83.93573267]
[1680595944145,11.30198062,28034.0,28033.0,83.92663267]
[1680595944564,11.31974981,28034.0,28033.0,83.92663267]
[1680595944771,11.31974981,28034.0,28033.0,83.91767267]
[1680595944981,11.29274981,28034.0,28033.0,83.91767267]
[1680595945182,11.32824981,28034.0,28033.0,83.91767267]
[1680595947628,11.31048062,28034.0,28033.0,83.91767267]
[1680595947842,11.31048062,28034.0,28033.0,83.89659267]
[1680595948067,11.31048062,28034.0,28033.0,83.71196422]
[1680595948298,11.31048062,28034.0,28033.0,83.70284626]
[1680595948588,11.31048062,28034.0,28033.0,83.69392626]
[1680595948836,11.31048062,28034.0,28033.0,83.68620626]
[1680595949055,11.28348062,28034.0,28033.0,83.68620626]
[1680595949276,11.31048062,28034.0,28033.0,83.68620626]
[1680595949501,11.28348062,28034.0,28033.0,83.68620626]
[1680595949737,11.31048062,28034.0,28033.0,83.68620626]
[1680595950518,11.31048062,28034.0,28033.0,83.68332626]
[1680595950738,11.06386351,28034.0,28033.0,83.68332626]
[1680595950962,10.71681925,28034.0,28033.0,83.67939626]
[1680595951154,10.71681925,28034.0,28033.0,83.67059626]
[1680595951459,10.71034705,28034.0,28033.0,83.67059626]
[1680595951585,10.71034705,28034.0,28033.0,83.67077626]
[1680595951586,10.71013705,28034.0,28033.0,83.67077626]
[1680595952516,10.72790624,28034.0,28033.0,83.67077626]
[1680595953140,10.72790624,28034.0,28033.0,83.61987772]
[1680595953358,10.72811624,28034.0,28033.0,83.60527772]
[1680595953812,10.72811624,28034.0,28033.0,83.60171772]
[1680595954031,10.72811624,28034.0,28033.0,83.4964317]
[1680595954228,10.72811624,28034.0,28033.0,83.3914317]
[1680595954459,10.72811624,28034.0,28033.0,83.0253305]
[1680595954910,10.72811624,28034.0,28033.0,82.98388641]
[1680595955134,10.70111624,28034.0,28033.0,82.96193641]
[1680595955359,10.72811624,28034.0,28033.0,82.96193641]
[1680595955553,10.70111624,28034.0,28033.0,82.1749123]
[1680595955803,10.72811624,28034.0,28033.0,81.97659665]
[1680595956486,11.1021705,28034.0,28033.0,81.95874665]
[1680595956705,11.56062688,28034.0,28033.0,81.89312114]
[1680595956918,11.56062688,28034.0,28033.0,81.80542114]
[1680595957158,11.77661246,28034.0,28033.0,81.5191025]
[1680595957432,11.77667246,28034.0,28033.0,78.4402345]
[1680595957653,11.35409608,28034.0,28033.0,74.65096304]
[1680595957878,11.35409608,28034.0,28033.0,72.45805304]
[1680595958102,11.64893408,28034.0,28033.0,70.8890793]
[1680595958292,11.53942608,28034.0,28033.0,68.59366385]
[1680595958491,11.59231608,28034.0,28033.0,66.72166385]
[1680595958764,11.51595308,28034.0,28033.0,64.84966385]
[1680595958983,11.56884308,28034.0,28033.0,63.28966385]
[1680595959198,11.51595308,28034.0,28033.0,60.16966385]
[1680595959413,11.55747508,28034.0,28033.0,59.23366385]
[1680595959635,12.0052864,28034.0,28033.0,57.67366385]
[1680595959856,11.81637001,28034.0,28033.0,54.76166385]
[1680595960081,11.81637001,28034.0,28033.0,49.74614479]
[1680595960304,11.81637001,28034.0,28033.0,46.31414479]
[1680595960520,11.81637001,28034.0,28033.0,36.64214479]
[1680595960521,11.34553608,28034.0,28033.0,36.64214479]
[1680595960745,11.80787001,28034.0,28033.0,35.70614479]
[1680595961230,11.77199001,28034.0,28033.0,35.39414479]
[1680595961482,11.30965608,28034.0,28033.0,35.39414479]
[1680595961674,11.31815608,28034.0,28033.0,35.39414479]
[1680595961955,11.43494008,28034.0,28033.0,35.39414479]
[1680595962846,11.41717089,28034.0,28033.0,35.39414479]
[1680595963522,11.41716089,28034.0,28033.0,35.39414479]
[1680595963762,11.13534569,28034.0,28033.0,34.607076]
[1680595965395,11.13534569,28034.0,28033.0,34.607196]
[1680595965611,11.13534569,28034.0,28033.0,34.607076]
[1680595965823,11.13534569,28034.0,28033.0,34.583739]
[1680595966050,11.2853568,28034.0,28033.0,34.578039]
[1680595966475,11.2751528,28034.0,28033.0,34.578039]
[1680595966698,11.18634199,28034.0,28033.0,34.578039]
[1680595966917,11.18634199,28034.0,28033.0,34.577269]
[1680595967131,11.03633088,28034.0,28033.0,34.577269]
[1680595967359,11.03633088,28034.0,28033.0,34.577329]
[1680595967579,11.03633088,28034.0,28033.0,34.571415]
[1680595968740,11.18634199,28034.0,28033.0,34.53453968]
[1680595968923,10.81228773,28034.0,28033.0,34.53453968]
[1680595969182,11.18634199,28034.0,28033.0,34.53453968]
[1680595969844,11.03633088,28034.0,28033.0,34.53453968]
[1680595970525,11.03633088,28034.0,28033.0,34.52580968]
[1680595970743,11.03633088,28034.0,28033.0,34.52010968]
[1680595972862,11.03633088,28034.0,28033.0,34.47720968]
[1680595974537,11.03633088,28034.0,28033.0,34.47320968]
[1680595974752,11.03633088,28034.0,28033.0,34.44320968]
[1680595974966,10.66227662,28034.0,28033.0,34.44320968]
[1680595975188,11.03633088,28034.0,28033.0,34.44320968]
[1680595976720,11.03633088,28034.0,28033.0,34.43425544]
[1680595976938,11.03633088,28034.0,28033.0,34.40025544]
[1680595978260,11.19288488,28034.0,28033.0,34.36671409]
[1680595978482,11.03633088,28034.0,28033.0,34.36671409]
[1680595978942,11.03633088,28034.0,28033.0,34.35763586]
[1680595979768,10.66227662,28034.0,28033.0,34.35763586]
[1680595979980,11.03633088,28034.0,28033.0,34.35763586]
[1680595980201,11.49875481,28034.0,28033.0,33.34382077]
[1680595980456,11.92728244,28034.0,28033.0,33.05837058]
[1680595980890,11.90951325,28034.0,28033.0,33.05837058]
[1680595981329,11.90951325,28034.0,28033.0,33.04957102]
[1680595981509,11.90951325,28034.0,28033.0,32.98057102]
[1680595981717,11.90951325,28034.0,28033.0,32.92057102]
[1680595981919,11.90951325,28034.0,28033.0,32.91175102]
[1680595982126,11.77886325,28034.0,28033.0,32.91175102]
[1680595982466,11.63400825,28034.0,28033.0,32.91175102]
[1680595983089,11.63400825,28034.0,28033.0,32.90696502]
[1680595983609,11.63400825,28034.0,28033.0,32.90708502]
[1680595983814,11.63400825,28034.0,28033.0,32.90696502]
[1680595984020,11.63400825,28034.0,28033.0,32.90126502]
[1680595984704,11.65177744,28034.0,28033.0,32.90126502]
[1680595985122,11.45550825,28034.0,28033.0,32.90126502]
[1680595985331,11.63401825,28034.0,28033.0,32.90126502]
[1680595985535,11.63401825,28034.0,28033.0,32.89769502]
[1680595986679,11.65178744,28034.0,28033.0,32.89769502]
[1680595987616,11.78704744,28034.0,28033.0,32.89199502]
[1680595987821,11.97940633,28034.0,28033.0,32.89199502]
[1680595988009,11.65178744,28034.0,28033.0,32.89199502]
[1680595988745,11.65178744,28034.0,28033.0,32.88116502]
[1680595988965,11.87727244,28034.0,28033.0,32.88116502]
[1680595989184,11.79423244,28034.0,28033.0,32.88116502]
[1680595989427,11.79423244,28034.0,28033.0,32.86936387]
[1680595989645,11.95935244,28034.0,28033.0,32.86923989]
[1680595990518,11.65184744,28034.0,28033.0,32.86923989]
[1680595990718,11.65178744,28034.0,28033.0,32.86923989]
[1680595990929,11.65184744,28034.0,28033.0,32.86923989]
[1680595991158,11.65178744,28034.0,28033.0,32.86923989]
[1680595991369,11.49870481,28034.0,28033.0,32.81123989]
[1680595992013,11.32140849,28034.0,28033.0,32.81123989]
[1680595992218,10.94735423,28034.0,28033.0,32.80123989]
[1680595992433,10.94734423,28034.0,28033.0,32.79823989]
[1680595992647,10.94740423,28034.0,28033.0,32.79823989]
[1680595992858,11.12470055,28034.0,28033.0,32.79823989]
[1680595993078,11.12470055,28034.0,28033.0,32.76423989]
[1680595993293,11.49875481,28034.0,28033.0,32.76423989]
[1680595993607,11.27407688,28034.0,28033.0,31.6771545]
[1680595993823,11.21776894,28034.0,28033.0,31.63398734]
[1680595994035,11.21776894,28034.0,28033.0,31.62958734]
[1680595994710,11.19076894,28034.0,28033.0,31.62958734]
[1680595994927,11.21776894,28034.0,28033.0,31.62958734]
[1680595995148,11.27912823,28034.0,28033.0,31.62958734]
[1680595995369,11.30612673,28034.0,28033.0,31.62958734]
[1680595995587,11.65318099,28034.0,28033.0,31.62958734]
[1680595995906,11.68018099,28034.0,28033.0,31.62958734]
[1680595996347,11.65318099,28034.0,28033.0,31.52558734]
[1680595996563,11.68018099,28034.0,28033.0,31.52564734]
[1680595997446,11.65318099,28034.0,28033.0,31.52564734]
[1680595997657,11.19076894,28034.0,28033.0,31.52564734]
[1680595998074,11.19075894,28034.0,28033.0,31.52564734]
[1680595998291,11.21775894,28034.0,28033.0,31.52564734]
[1680595998508,11.19075894,28034.0,28033.0,31.52564734]
[1680595998714,11.21775894,28034.0,28033.0,31.52564734]
[1680595998935,11.19075894,28034.0,28033.0,31.52564734]
[1680595999366,11.21775894,28034.0,28033.0,31.52564734]
[1680595999845,11.12419336,28034.0,28033.0,31.52564734]
[1680596000061,11.12419336,28034.0,28033.0,31.51514234]
[1680596000289,11.12419336,28034.0,28033.0,31.50986134]
[1680596000506,10.97477336,28034.0,28033.0,31.50986134]
[1680596000694,11.00177336,28034.0,28033.0,31.50986134]
[1680596000944,10.97477336,28034.0,28033.0,31.50986134]
[1680596001169,11.00177336,28034.0,28033.0,31.50986134]
[1680596001595,10.97477336,28034.0,28033.0,31.50986134]
[1680596001806,11.00177336,28034.0,28033.0,31.50998134]
[1680596002874,11.00177336,28034.0,28033.0,31.50986134]
[1680596003099,11.26950936,28034.0,28033.0,31.50986134]
[1680596003435,11.62503836,28034.0,28033.0,31.50986134]
[1680596003566,12.36097036,28034.0,28033.0,31.50986134]
[1680596004052,12.36099036,28034.0,28033.0,31.50986134]
[1680596004488,11.00179336,28034.0,28033.0,31.50986134]
[1680596004929,11.00179336,28034.0,28033.0,31.50448681]
[1680596005146,11.00178336,28034.0,28033.0,31.50448681]
[1680596007210,11.00179336,28034.0,28033.0,31.50448681]
[1680596007853,11.22311718,28034.0,28033.0,31.50448681]
[1680596008068,11.22311718,28034.0,28033.0,31.50460681]
[1680596008291,11.22311718,28034.0,28033.0,31.50448681]
[1680596008933,11.22311718,28034.0,28033.0,31.34004111]
[1680596009055,11.22309718,28034.0,28033.0,31.34004111]
[1680596009886,11.22309718,28034.0,28033.0,31.23464311]
[1680596010546,11.04580086,28034.0,28033.0,31.23464311]
[1680596011016,11.17200686,28034.0,28033.0,31.23464311]
[1680596011620,11.04580086,28034.0,28033.0,31.23464311]
[1680596016662,11.04580086,28034.0,28033.0,31.06830563]
[1680596016885,11.63081886,28034.0,28033.0,31.06830563]
[1680596017124,11.42672586,28034.0,28033.0,31.06830563]
[1680596017552,11.20672086,28034.0,28033.0,31.06830563]
[1680596017985,11.15167186,28034.0,28033.0,31.06830563]
[1680596018439,11.26175186,28034.0,28033.0,31.06830563]
[1680596019301,11.15167186,28034.0,28033.0,31.06830563]
[1680596019520,11.04580086,28034.0,28033.0,31.06830563]
[1680596020358,11.04580086,28034.0,28033.0,31.05782873]
[1680596021019,15.35323486,28034.0,28033.0,30.8446019]
[1680596021252,15.70793602,28034.0,28033.0,30.73900403]
[1680596021463,16.01992502,28034.0,28033.0,30.73900403]
[1680596022121,16.09133102,28034.0,28033.0,30.73900403]
[1680596022617,15.81482102,28034.0,28033.0,30.73912403]
[1680596022831,15.63387402,28034.0,28033.0,30.10747659]
[1680596023042,12.50514602,28034.0,28033.0,30.0066685]
[1680596023255,12.34977302,28034.0,28033.0,30.0066685]
[1680596023467,12.34977302,28034.0,28033.0,29.99576536]
[1680596023686,11.77296102,28034.0,28033.0,29.94224456]
[1680596023905,12.04197502,28034.0,28033.0,29.92261456]